[Event "Pavlodar Open 2019"]
[Site "Pavlodar"]
[Date "2019.11.25"]
[Round "2.1"]
[White "Abdurakhmonov, Mukhammadali"]
[Black "Tiviakov, Sergei"]
[Result "0-1"]
[ECO "B01"]
[WhiteElo "2234"]
[BlackElo "2613"]
[Annotator "RC"]
[PlyCount "118"]
[EventDate "2019.11.25"]
[EventType "swiss"]
[EventCountry "KAZ"]
[SourceTitle "playchess.com"]
[Source "ChessBase"]
[SourceQuality "1"]
[TimeControl "5400+30"]

1. e4 {[%emt 0:03:16]} d5 {[%emt 0:00:00]} 2. exd5 {[%emt 0:01:02]} Qxd5 {[%emt 0:00:00]} 3. Nc3 {[%emt 0:00:08]} Qd6 {[%emt 0:00:00]} 4. d4 {[%emt 0:12:43]} Nf6 {[%emt 0:02:41]} 5. Be2 {[%emt 0:08:34]} c6 {[%emt 0:00:57]} 6. Nf3 {[%emt 0:00:40]} Bg4 {[%emt 0:03:17]} 7. h3 {[%emt 0:02:58]} Bxf3 {[%emt 0:02:47]} 8. Bxf3 {[%emt 0:00:06]} e6 {[%emt 0:00:04]} 9. O-O {[%emt 0:09:04]} Nbd7 {[%emt 0:00:19]} 10. Be3 {[%emt 0:03:59]} Qc7 {[%emt 0:02:44]} 11. Qe2 {[%emt 0:06:12]} Be7 {[%emt 0:03:57]} 12. a4 {[%emt 0:01:18]} O-O {[%emt 0:00:17]} 13. g3 {[%emt 0:00:30]} a5 {[%emt 0:02:02]} 14. Bg2 {[%emt 0:02:24]} Rfe8 {[%emt 0:02:20]} 15. Rfe1 {[%emt 0:04:38]} Bb4 {[%emt 0:01:48]} 16. Bd2 {[%emt 0:00:28]} Qd6 {[%emt 0:04:29]} 17. Ne4 {[%emt 0:05:37]} Nxe4 18. Bxe4 {[%emt 0:00:09]} Bxd2 19. Qxd2 {[%emt 0:00:06]} e5 {[%emt 0:03:36]} 20. Rad1 {[%emt 0:02:09]} exd4 {[%emt 0:06:28]} 21. Qxd4 {[%emt 0:00:41]} Qxd4 {[%emt 0:00:05]} 22. Rxd4 {[%emt 0:00:05]} Nb6 {[%emt 0:03:15]} 23. Kf1 {[%emt 0:02:33]} Rad8 {[%emt 0:07:15]} 24. Rxd8 {[%emt 0:00:12]} Rxd8 {[%emt 0:00:01]} 25. b3 {[%emt 0:00:13]} g6 {[%emt 0:00:17]} 26. Bf3 {[%emt 0:05:04]} Kf8 {[%emt 0:00:40]} 27. Re5 {[%emt 0:00:25]} Ra8 {[%emt 0:00:05]} 28. Bg4 {[%emt 0:00:55]} Nd5 {[%emt 0:02:12]} 29. Ke1 {[%emt 0:04:55]} f6 {[%emt 0:17:25]} 30. Re2 {[%emt 0:00:07]} f5 {[%emt 0:00:04]} 31. Bf3 {[%emt 0:00:06]} Nb4 {[%emt 0:00:04]} 32. Kd2 {[%emt 0:04:25]} Rd8+ {[%emt 0:00:37]} 33. Kc3 {[%emt 0:00:20]} Rd6 {[%emt 0:00:39]} 34. Re1 {[%emt 0:04:29]} b6 {[%emt 0:02:58]} 35. h4 {[%emt 0:06:02]} Kf7 {[%emt 0:00:24]} 36. Re2 {[%emt 0:00:36]} Na6 {[%emt 0:07:45]} 37. Kc4 {[%emt 0:03:18]} Nc5 {[%emt 0:01:20]} 38. Bg2 {[%emt 0:02:48]} Ne6 {[%emt 0:06:18]} 39. c3 {[%emt 0:01:46]} Kf6 {[%emt 0:00:46]} 40. Bf3 {[%emt 0:01:02]} Nc5 {[%emt 0:10:52]} 41. Re3 {[%emt 0:02:00]} h6 {[%emt 0:03:32]} 42. Bg2 {[%emt 0:00:43]} g5 {[%emt 0:00:10]} 43. hxg5+ {[%emt 0:00:05]} hxg5 {[%emt 0:00:02]} 44. Bh1 {[%emt 0:01:27]} g4 {[%emt 0:04:42]} 45. f4 {[%emt 0:01:27]} gxf3 {[%emt 0:00:07]} 46. Bxf3 {[%emt 0:00:07]} Nd7 {[%emt 0:00:08]} 47. b4 {[%emt 0:00:25]} Ne5+ {[%emt 0:00:06]} 48. Kb3 {[%emt 0:00:04]} c5 {[%emt 0:01:15]} 49. Be2 {[%emt 0:01:12]} Rd2 {[%emt 0:00:08]} 50. Ba6 {[%emt 0:00:41]} c4+ {[%emt 0:01:03]} 51. Ka3 {[%emt 0:00:32]} Rc2 {[%emt 0:00:07]} 52. bxa5 {[%emt 0:00:31]} bxa5 {[%emt 0:00:05]} 53. Bc8 {[%emt 0:00:27]} Nd3 {[%emt 0:00:23]} 54. Re6+ {[%emt 0:00:21]} Kg5 {[%emt 0:00:26]} 55. Ba6 {[%emt 0:00:49]} Nc1 {[%emt 0:01:10]} 56. Bxc4 {[%emt 0:00:06]} Rxc3+ {[%emt 0:00:03]} 57. Kb2 {[%emt 0:00:06]} Rxc4 {[%emt 0:00:03]} 58. Re3 {[%emt 0:00:30]} Kg4 {[%emt 0:00:07]} 59. Kb1 {[%emt 0:00:07]} Re4 {[%emt 0:00:09]} 0-1

[Event "Pavlodar Open 2019"]
[Site "Pavlodar"]
[Date "2019.11.25"]
[Round "2.3"]
[White "Obolenskikh, Dmitry"]
[Black "Sadubayev, Airat"]
[Result "1-0"]
[ECO "E18"]
[WhiteElo "2542"]
[BlackElo "2188"]
[Annotator "RC"]
[PlyCount "77"]
[EventDate "2019.11.25"]
[EventType "swiss"]
[EventCountry "KAZ"]
[SourceTitle "playchess.com"]
[Source "ChessBase"]
[SourceQuality "1"]
[TimeControl "5400+30"]

1. Nf3 {[%emt 0:08:13]} Nf6 {[%emt 0:00:29]} 2. c4 {[%emt 0:00:05]} e6 {[%emt 0:00:38]} 3. g3 {[%emt 0:00:09]} d5 {[%emt 0:00:47]} 4. Bg2 {[%emt 0:00:05]} Be7 {[%emt 0:02:07]} 5. d4 {[%emt 0:00:12]} O-O {[%emt 0:01:27]} 6. O-O {[%emt 0:00:24]} b6 {[%emt 0:04:06]} 7. cxd5 {[%emt 0:00:33]} exd5 {[%emt 0:00:07]} 8. Nc3 {[%emt 0:00:08]} Bb7 {[%emt 0:02:10]} 9. Bf4 {[%emt 0:00:08]} c6 {[%emt 0:00:56]} 10. Qb3 {[%emt 0:03:17]} Na6 {[%emt 0:10:58]} 11. Rac1 {[%emt 0:00:13]} Rc8 {[%emt 0:00:40]} 12. Bh3 {[%emt 0:00:34]} Ra8 {[%emt 0:01:38]} 13. Rfd1 {[%emt 0:00:20]} b5 {[%emt 0:14:25]} 14. Ne5 {[%emt 0:02:49]} Qb6 {[%emt 0:02:33]} 15. Bg5 {[%emt 0:02:21]} Bc8 {[%emt 0:14:30]} 16. Bg2 {[%emt 0:03:08]} Be6 {[%emt 0:02:53]} 17. a4 {[%emt 0:05:57]} b4 {[%emt 0:02:32]} 18. a5 {[%emt 0:05:55]} Qb7 {[%emt 0:01:08]} 19. Na4 {[%emt 0:01:04]} Rac8 {[%emt 0:01:36]} 20. e3 {[%emt 0:00:37]} h6 {[%emt 0:06:43]} 21. Bxf6 {[%emt 0:00:12]} Bxf6 {[%emt 0:00:07]} 22. Nd3 {[%emt 0:01:33]} Qb5 {[%emt 0:06:17]} 23. Nac5 {[%emt 0:00:54]} Bg4 {[%emt 0:09:28]} 24. Rd2 {[%emt 0:02:24]} Qxa5 {[%emt 0:01:46]} 25. Nxa6 {[%emt 0:00:16]} Qxa6 {[%emt 0:00:04]} 26. Bf1 {[%emt 0:01:34]} Qb6 {[%emt 0:04:01]} 27. Qxb4 {[%emt 0:00:07]} Rb8 {[%emt 0:00:38]} 28. Qd6 {[%emt 0:03:21]} Rfc8 {[%emt 0:01:28]} 29. Rdc2 {[%emt 0:00:11]} c5 {[%emt 0:03:41]} 30. Qf4 {[%emt 0:00:35]} h5 {[%emt 0:01:12]} 31. dxc5 {[%emt 0:03:49]} Qc7 {[%emt 0:01:17]} 32. c6 {[%emt 0:04:25]} Qxf4 {[%emt 0:02:31]} 33. Nxf4 {[%emt 0:00:06]} Bxb2 {[%emt 0:01:02]} 34. c7 {[%emt 0:01:50]} Rb6 {[%emt 0:00:28]} 35. Rb1 {[%emt 0:02:46]} Bd4 {[%emt 0:00:34]} 36. Rxb6 {[%emt 0:00:08]} Bxb6 {[%emt 0:00:07]} 37. Nxd5 {[%emt 0:00:05]} Kf8 {[%emt 0:00:50]} 38. Nxb6 {[%emt 0:00:10]} axb6 {[%emt 0:00:14]} 39. Ba6 {[%emt 0:00:05]} 1-0

[Event "Pavlodar Open 2019"]
[Site "Pavlodar"]
[Date "2019.11.25"]
[Round "3.2"]
[White "Zhalmakhanov, Ramazan"]
[Black "Sivuk, Vitaly"]
[Result "1/2-1/2"]
[ECO "C07"]
[WhiteElo "2391"]
[BlackElo "2582"]
[Annotator "RC"]
[PlyCount "67"]
[EventDate "2019.11.25"]
[EventType "swiss"]
[EventCountry "KAZ"]
[SourceTitle "playchess.com"]
[Source "ChessBase"]
[SourceQuality "1"]
[TimeControl "5400+30"]

1. e4 {[%emt 0:00:00]} e6 {[%emt 0:00:05]} 2. d4 {[%emt 0:00:00]} d5 {[%emt 0:00:07]} 3. Nd2 {[%emt 0:00:00]} c5 {[%emt 0:00:10]} 4. exd5 {[%emt 0:02:16]} Qxd5 {[%emt 0:00:10]} 5. Ngf3 {[%emt 0:00:17]} cxd4 {[%emt 0:00:12]} 6. Bc4 {[%emt 0:00:08]} Qd7 {[%emt 0:00:11]} 7. O-O {[%emt 0:06:18]} Nc6 {[%emt 0:00:25]} 8. Nb3 {[%emt 0:00:14]} Nf6 {[%emt 0:00:55]} 9. Nbxd4 {[%emt 0:00:33]} Nxd4 {[%emt 0:00:10]} 10. Nxd4 {[%emt 0:01:41]} a6 {[%emt 0:00:11]} 11. c3 {[%emt 0:01:05]} Qc7 {[%emt 0:03:37]} 12. Bb3 {[%emt 0:04:53]} Bd6 {[%emt 0:00:53]} 13. h3 {[%emt 0:04:06]} O-O 14. Re1 {[%emt 1:15:29]} Bh2+ {[%emt 0:11:40]} 15. Kh1 {[%emt 0:00:00]} Bf4 {[%emt 0:00:12]} 16. Bxf4 {[%emt 0:01:00]} Qxf4 {[%emt 1:19:02]} 17. Qf3 {[%emt 0:00:00]} Qxf3 18. Nxf3 b6 {[%emt 0:00:00]} 19. Rad1 Bb7 {[%emt 0:01:30]} 20. Ne5 {[%emt 0:00:00]} Rfd8 {[%emt 0:00:30]} 21. Kg1 {[%emt 0:00:00]} Kf8 {[%emt 0:00:00]} 22. f3 g5 {[%emt 0:00:00]} 23. h4 gxh4 {[%emt 0:01:30]} 24. Kh2 {[%emt 0:00:00]} Ke7 {[%emt 0:00:00]} 25. a4 {[%emt 0:00:00]} Rxd1 {[%emt 0:00:00]} 26. Rxd1 {[%emt 0:00:00]} Rg8 {[%emt 0:00:00]} 27. Rd4 {[%emt 0:00:00]} Rg5 {[%emt 0:00:00]} 28. Nd3 {[%emt 0:00:00]} e5 {[%emt 0:00:00]} 29. Rb4 {[%emt 0:00:00]} Nd7 {[%emt 0:00:00]} 30. Rxh4 {[%emt 0:00:00]} h5 {[%emt 0:00:00]} 31. Nf2 {[%emt 0:00:00]} Nf6 {[%emt 0:00:00]} 32. Rb4 {[%emt 0:00:00]} Nd7 {[%emt 0:00:00]} 33. Rh4 {[%emt 0:00:00]} Nf6 {[%emt 0:00:00]} 34. Rb4 {[%emt 0:00:00]} 1/2-1/2

[Event "Pavlodar Open 2019"]
[Site "Pavlodar"]
[Date "2019.11.25"]
[Round "6.3"]
[White "Vorobiov, Evgeny E."]
[Black "Sisabayev, Kuanysh"]
[Result "1/2-1/2"]
[ECO "E91"]
[WhiteElo "2554"]
[BlackElo "2256"]
[Annotator "ChessBase"]
[PlyCount "51"]
[EventDate "2019.11.25"]
[EventType "swiss"]
[EventCountry "KAZ"]
[SourceTitle "playchess.com"]
[Source "ChessBase"]
[SourceQuality "1"]
[TimeControl "5400+30"]

1. d4 {[%emt 0:00:00]} Nf6 {[%emt 0:00:00]} 2. c4 {[%emt 0:00:00]} g6 {[%emt 0:00:24]} 3. Nc3 {[%emt 0:00:04]} Bg7 {[%emt 0:00:32]} 4. e4 {[%emt 0:00:16]} d6 {[%emt 0:00:20]} 5. Be2 {[%emt 0:00:38]} O-O {[%emt 0:00:34]} 6. Nf3 {[%emt 0:00:04]} c5 {[%emt 0:01:16]} 7. O-O {[%emt 0:00:58]} Bg4 {[%emt 0:04:11]} 8. Be3 {[%emt 0:07:08]} Bxf3 {[%emt 0:00:15]} 9. Bxf3 {[%emt 0:00:05]} cxd4 {[%emt 0:00:06]} 10. Bxd4 {[%emt 0:00:13]} Nc6 {[%emt 0:00:07]} 11. Be3 {[%emt 0:00:50]} Rc8 {[%emt 0:01:22]} 12. Be2 {[%emt 0:02:11]} Nd7 {[%emt 0:04:48]} 13. Rc1 {[%emt 0:11:16]} Nc5 {[%emt 0:01:38]} 14. f3 {[%emt 0:02:53]} Ne6 {[%emt 0:00:13]} 15. Kh1 {[%emt 0:00:52]} Ned4 {[%emt 0:02:29]} 16. Bd3 {[%emt 0:04:19]} Nb4 {[%emt 0:04:00]} 17. b3 {[%emt 0:06:26]} Nxd3 {[%emt 0:00:56]} 18. Qxd3 {[%emt 0:00:06]} Nc6 {[%emt 0:00:08]} 19. Rfd1 {[%emt 0:07:50]} Qa5 {[%emt 0:00:32]} 20. a4 {[%emt 0:05:26]} Qh5 {[%emt 0:07:09]} 21. Nd5 {[%emt 0:01:49]} g5 {[%emt 0:08:28]} 22. Bg1 {[%emt 0:04:57]} e6 {[%emt 0:02:32]} 23. Ne3 {[%emt 0:01:34]} Rfd8 {[%emt 0:00:10]} 24. Qe2 {[%emt 0:06:21]} Qg6 {[%emt 0:05:15]} 25. Rd2 {[%emt 0:04:11]} h5 {[%emt 0:00:08]} 26. Rcd1 {[%emt 0:05:15]} 1/2-1/2

[Event "Pavlodar Open 2019"]
[Site "Pavlodar"]
[Date "2019.11.25"]
[Round "6.4"]
[White "Agmanov, Zhandos"]
[Black "Burmakin, Vladimir"]
[Result "1/2-1/2"]
[ECO "B13"]
[WhiteElo "2404"]
[BlackElo "2508"]
[Annotator "ChessBase"]
[PlyCount "40"]
[EventDate "2019.11.25"]
[EventType "swiss"]
[EventCountry "KAZ"]
[SourceTitle "playchess.com"]
[Source "ChessBase"]
[SourceQuality "1"]
[TimeControl "5400+30"]

1. e4 {[%emt 0:00:02]} c6 {[%emt 0:00:00]} 2. d4 {[%emt 0:00:30]} d5 {[%emt 0:00:00]} 3. exd5 {[%emt 0:01:02]} cxd5 {[%emt 0:00:00]} 4. Bd3 {[%emt 0:00:03]} Nc6 {[%emt 0:01:50]} 5. c3 {[%emt 0:00:23]} Nf6 {[%emt 0:00:20]} 6. Bf4 {[%emt 0:00:29]} Bg4 {[%emt 0:05:36]} 7. Qb3 {[%emt 0:00:42]} Qd7 {[%emt 0:08:32]} 8. Nd2 {[%emt 0:01:35]} e6 {[%emt 0:04:03]} 9. Ngf3 {[%emt 0:00:31]} Bxf3 {[%emt 0:00:08]} 10. Nxf3 {[%emt 0:00:03]} Be7 {[%emt 0:00:06]} 11. Ne5 {[%emt 0:08:10]} Qc8 {[%emt 0:00:01]} 12. O-O {[%emt 0:01:01]} O-O {[%emt 0:00:25]} 13. Rfe1 {[%emt 0:02:54]} Nxe5 {[%emt 0:09:44]} 14. Bxe5 {[%emt 0:02:22]} Rd8 {[%emt 0:21:16]} 15. Re3 {[%emt 0:12:44]} Nd7 {[%emt 0:09:00]} 16. Qc2 {[%emt 0:11:49]} g6 {[%emt 0:02:14]} 17. Bf4 {[%emt 0:01:03]} Nf8 {[%emt 0:00:16]} 18. Rae1 {[%emt 0:02:36]} Qd7 {[%emt 0:00:22]} 19. Bh6 {[%emt 0:03:40]} Bf6 {[%emt 0:00:11]} 20. Rf3 {[%emt 0:15:16]} Bg7 {[%emt 0:01:02]} 1/2-1/2

[Event "Pavlodar Open 2019"]
[Site "Pavlodar"]
[Date "2019.11.25"]
[Round "6.6"]
[White "Serikbay, Chingiz"]
[Black "Malakhatko, Vadim"]
[Result "1-0"]
[ECO "A41"]
[WhiteElo "2345"]
[BlackElo "2469"]
[Annotator "RC"]
[PlyCount "81"]
[EventDate "2019.11.25"]
[EventType "swiss"]
[EventCountry "KAZ"]
[SourceTitle "playchess.com"]
[Source "ChessBase"]
[SourceQuality "1"]
[TimeControl "5400+30"]

1. d4 {[%emt 0:00:00]} g6 {[%emt 0:00:00]} 2. Nf3 {[%emt 0:00:35]} Bg7 {[%emt 0:00:00]} 3. Bf4 {[%emt 0:00:06]} d6 {[%emt 0:00:21]} 4. e3 {[%emt 0:00:07]} Nd7 {[%emt 0:00:17]} 5. h3 {[%emt 0:00:06]} e5 {[%emt 0:00:12]} 6. Bh2 {[%emt 0:00:09]} Nh6 {[%emt 0:00:08]} 7. Be2 {[%emt 0:03:40]} O-O {[%emt 0:00:09]} 8. O-O {[%emt 0:00:22]} Qe7 {[%emt 0:03:47]} 9. c4 {[%emt 0:00:49]} f5 {[%emt 0:00:17]} 10. Nc3 {[%emt 0:02:00]} c6 {[%emt 0:00:08]} 11. Rc1 {[%emt 0:19:26]} Nf7 {[%emt 0:00:59]} 12. b4 {[%emt 0:01:52]} g5 {[%emt 0:01:22]} 13. c5 {[%emt 0:04:15]} d5 {[%emt 0:20:20]} 14. dxe5 {[%emt 0:02:47]} Ndxe5 {[%emt 0:00:07]} 15. Nd4 {[%emt 0:04:44]} Bd7 {[%emt 0:03:03]} 16. b5 {[%emt 0:08:09]} Qf6 {[%emt 0:05:05]} 17. a4 {[%emt 0:09:44]} f4 {[%emt 0:00:45]} 18. a5 {[%emt 0:04:53]} a6 {[%emt 0:03:35]} 19. bxa6 {[%emt 0:00:33]} bxa6 {[%emt 0:00:05]} 20. Na4 {[%emt 0:09:38]} Ra7 {[%emt 0:00:09]} 21. Nb6 {[%emt 0:00:16]} Nh6 {[%emt 0:00:57]} 22. Nxd7 {[%emt 0:01:02]} Rxd7 {[%emt 0:03:30]} 23. Rb1 {[%emt 0:01:46]} Nf5 {[%emt 0:01:31]} 24. Nxf5 {[%emt 0:03:42]} Qxf5 {[%emt 0:00:06]} 25. Rb4 {[%emt 0:02:36]} fxe3 {[%emt 0:03:19]} 26. fxe3 {[%emt 0:03:36]} Qe6 {[%emt 0:00:05]} 27. Rxf8+ {[%emt 0:01:51]} Bxf8 {[%emt 0:00:07]} 28. Qd4 {[%emt 0:01:16]} Re7 {[%emt 0:04:25]} 29. Bxa6 {[%emt 0:00:55]} Nd7 {[%emt 0:02:38]} 30. Bc8 {[%emt 0:02:43]} Re8 {[%emt 0:04:54]} 31. Bxd7 Qxd7 {[%emt 0:00:05]} 32. Rb8 {[%emt 0:05:36]} Rxb8 {[%emt 0:04:23]} 33. Bxb8 {[%emt 0:00:00]} Qd8 {[%emt 0:00:08]} 34. Bd6 {[%emt 0:01:32]} Qxa5 {[%emt 0:02:15]} 35. Bxf8 {[%emt 0:00:01]} Kxf8 {[%emt 0:00:11]} 36. Qf6+ {[%emt 0:00:42]} Kg8 {[%emt 0:00:07]} 37. Qxg5+ {[%emt 0:01:09]} Kf7 {[%emt 0:00:07]} 38. Qf5+ {[%emt 0:00:08]} Kg8 {[%emt 0:00:25]} 39. Qc8+ {[%emt 0:00:48]} Kg7 {[%emt 0:00:06]} 40. Qd7+ {[%emt 0:00:12]} Kh8 {[%emt 0:00:41]} 41. Qxc6 {[%emt 0:01:22]} 1-0

[Event "Pavlodar Open 2019"]
[Site "Pavlodar"]
[Date "2019.11.25"]
[Round "6.7"]
[White "Suleymenov, Alisher"]
[Black "Faizrakhmanov, Ramil"]
[Result "0-1"]
[ECO "E12"]
[WhiteElo "2373"]
[BlackElo "2434"]
[Annotator "NA"]
[PlyCount "86"]
[EventDate "2019.11.25"]
[EventType "swiss"]
[EventCountry "KAZ"]
[SourceTitle "playchess.com"]
[Source "ChessBase"]
[SourceQuality "1"]
[TimeControl "5400+30"]

1. d4 {[%emt 0:00:00]} Nf6 {[%emt 0:00:00]} 2. c4 {[%emt 0:00:00]} e6 {[%emt 0:00:00]} 3. Nf3 {[%emt 0:00:00]} b6 {[%emt 0:00:27]} 4. a3 {[%emt 0:00:00]} Ba6 {[%emt 0:00:48]} 5. Qc2 {[%emt 0:00:00]} Bb7 {[%emt 0:00:25]} 6. Nc3 {[%emt 0:00:07]} c5 {[%emt 0:00:26]} 7. e4 {[%emt 0:00:07]} cxd4 {[%emt 0:00:13]} 8. Nxd4 {[%emt 0:00:05]} Bc5 {[%emt 0:00:34]} 9. Nf3 {[%emt 0:00:05]} Nc6 {[%emt 0:04:57]} 10. b4 {[%emt 0:00:17]} Nd4 {[%emt 0:02:08]} 11. Qd2 {[%emt 0:00:06]} Nxf3+ {[%emt 0:09:00]} 12. gxf3 {[%emt 0:00:51]} Be7 {[%emt 0:00:10]} 13. Bb2 {[%emt 0:00:09]} d6 {[%emt 0:01:41]} 14. Rg1 {[%emt 0:00:44]} O-O {[%emt 0:01:28]} 15. O-O-O {[%emt 0:00:21]} e5 {[%emt 0:01:43]} 16. f4 {[%emt 0:21:51]} Nxe4 {[%emt 0:05:54]} 17. Nxe4 {[%emt 0:01:38]} Bxe4 {[%emt 0:00:09]} 18. fxe5 {[%emt 0:04:04]} d5 {[%emt 0:07:43]} 19. f3 {[%emt 0:15:07]} Bg6 {[%emt 0:01:43]} 20. cxd5 {[%emt 0:05:16]} a5 {[%emt 0:03:47]} 21. d6 {[%emt 0:06:32]} axb4 {[%emt 0:02:48]} 22. Rxg6 {[%emt 0:14:24]} bxa3 {[%emt 0:02:16]} 23. dxe7 {[%emt 0:08:41]} axb2+ {[%emt 0:00:14]} 24. Kxb2 {[%emt 0:13:08]} Qxe7 {[%emt 0:00:08]} 25. Qd6 {[%emt 0:04:19]} Qh4 {[%emt 0:01:11]} 26. Rg4 {[%emt 0:00:52]} Qf2+ {[%emt 0:00:18]} 27. Qd2 {[%emt 0:01:21]} Qxf3 {[%emt 0:00:29]} 28. Rg3 {[%emt 0:00:39]} Qf5 {[%emt 0:00:35]} 29. Bc4 {[%emt 0:02:40]} Ra4 {[%emt 0:06:59]} 30. Bb3 {[%emt 0:00:51]} Rf4 {[%emt 0:00:08]} 31. Re3 {[%emt 0:00:32]} Kh8 {[%emt 0:09:37]} 32. Qd3 {[%emt 0:00:33]} Qg5 {[%emt 0:01:11]} 33. Rd2 {[%emt 0:00:26]} h5 {[%emt 0:03:03]} 34. Bc2 {[%emt 0:00:32]} g6 {[%emt 0:00:35]} 35. Qc3 {[%emt 0:00:33]} Kh7 {[%emt 0:01:19]} 36. Rg3 {[%emt 0:00:17]} Qe7 {[%emt 0:00:51]} 37. Re2 {[%emt 0:00:48]} Qd7 {[%emt 0:00:53]} 38. Bb3 {[%emt 0:00:28]} Rc8 {[%emt 0:00:38]} 39. Qe3 {[%emt 0:00:29]} Rb4 {[%emt 0:01:55]} 40. Rf3 {[%emt 0:00:30]} Rc7 {[%emt 0:01:11]} 41. Ref2 {[%emt 0:00:26]} Qd5 {[%emt 0:02:20]} 42. Rd2 {[%emt 0:00:31]} Rxb3+ {[%emt 0:00:10]} 43. Qxb3 {[%emt 0:00:31]} Qxd2+ {[%emt 0:00:04]} 0-1